lending/lending_fUSD_20250501
["ID","MTS","AMOUNT","RATE_DAILY","PERIOD"]
[359575822,1746137453237,-256.1570877,0.00035616,11]
[359575823,1746137453246,-470.0,0.00035616,11]
[359575824,1746137453257,-520.40783901,0.00035616,11]
[359575825,1746137453266,-478.97,0.00035616,11]
[359575826,1746137453275,-544.03290989,0.00035616,11]
[359575827,1746137453286,-450.0,0.00035616,11]
[359575828,1746137453297,-450.0,0.00035616,11]
[359575829,1746137453308,-450.0,0.00035616,11]
[359575830,1746137453321,-470.0,0.00035616,11]
[359575831,1746137453332,-519.60641029,0.00035616,11]
[359575832,1746137453341,-450.0,0.00035616,11]
[359575833,1746137453350,-468.79,0.00035616,11]
[359575834,1746137453361,-870.39,0.00035616,11]
[359575835,1746137453370,-579.31,0.00035616,11]
[359575836,1746137453380,-450.0,0.00035616,11]
[359575837,1746137453391,-450.0,0.00035616,11]
[359575838,1746137453402,-450.0,0.00035616,11]
[359575839,1746137453411,-328.28806587,0.00035616,11]
[359575840,1746137453420,-463.2,0.00035616,11]
[359575841,1746137453429,-2800.3,0.00035616,11]
[359575842,1746137453439,-705.22,0.00035616,11]
[359575843,1746137453447,-151.0,0.00035616,7]
[359575844,1746137453456,-151.0,0.00035616,7]
[359575845,1746137453466,-910.25,0.00035616,11]
[359575846,1746137453475,-450.0,0.00035616,11]
[359575847,1746137453484,-450.0,0.00035616,11]
[359575848,1746137453494,-668.14,0.00035616,11]
[359575849,1746137453503,-450.0,0.00035616,11]
[359575850,1746137453513,-450.0,0.00035616,2]
[359575851,1746137453522,-459.07,0.00035616,11]
[359575852,1746137453531,-701.88,0.00035616,11]
[359575853,1746137453540,-2193.753291,0.00035616,11]
[359575854,1746137453550,-530.32,0.00035616,11]
[359575855,1746137453560,-450.0,0.00035616,11]
[359575856,1746137453570,-1784.68,0.00035616,11]
[359575857,1746137453580,-450.0,0.00035616,11]
[359575858,1746137453590,-679.98,0.00035616,11]
[359575859,1746137453601,-470.0,0.00035616,11]
[359575860,1746137453614,-470.0,0.00035616,11]
[359575861,1746137453624,-450.0,0.00035616,11]
[359575862,1746137453634,-450.0,0.00035616,11]
[359575863,1746137453643,-1515.86,0.00035616,11]
[359575864,1746137453653,-450.0,0.00035616,11]
[359575865,1746137453662,-151.0,0.00035616,7]
[359575866,1746137453672,-151.0,0.00035616,7]
[359575867,1746137453683,-1022.27,0.00035616,11]
[359575868,1746137453693,-506.62951213,0.00035616,11]
[359575869,1746137453702,-3303.136,0.0003564,120]
[359575870,1746137453713,-3303.136,0.0003564,120]
[359575871,1746137453723,-3303.137,0.0003564,120]
[359575872,1746137453732,-3303.136,0.0003564,120]
[359575873,1746137453742,-3303.137,0.0003564,120]
[359575874,1746137453752,-150.0,0.00035674,2]
[359575875,1746137453761,-150.0,0.00035684,2]
[359575876,1746137453771,-150.0,0.00035688,2]
[359575877,1746137453780,-300.0,0.000357,2]
[359575878,1746137453789,-1500.00000099,0.000357,2]
[359575879,1746137453799,-150.0,0.00035752,2]
[359575880,1746137453808,-150.0,0.00035754,2]
[359575881,1746137453817,-150.0,0.00035767,2]
[359575882,1746137453827,-150.0,0.00035773,7]
[359575883,1746137453836,-150.0,0.00035774,2]
[359575884,1746137453845,-4499.2,0.000358,2]
[359575885,1746137453855,-4499.2,0.000358,2]
[359575886,1746137453864,-181.5,0.00035841,30]
[359575887,1746137453873,-150.0,0.0003585,2]
[359575888,1746137453884,-150.0,0.00035871,2]
[359575889,1746137453894,-450.0,0.0003589,2]
[359575890,1746137453903,-203.23127724,0.0003589,11]
[359575891,1746137453914,-450.0,0.0003589,3]
[359575892,1746137453925,-620.25,0.0003589,11]
[359575893,1746137453935,-822.32,0.0003589,11]
[359575894,1746137453944,-1695.93,0.0003589,2]
[359575895,1746137453953,-450.0,0.0003589,11]
[359575896,1746137453963,-450.0,0.0003589,11]
[359575897,1746137453973,-450.0,0.0003589,11]
[359575898,1746137453983,-450.0,0.0003589,11]
[359575899,1746137453992,-674.63,0.0003589,11]
[359575900,1746137454002,-450.0,0.0003589,11]
[359575901,1746137454011,-403.94831902,0.0003589,11]
[359575902,1746137454020,-450.0,0.0003589,11]
[359575903,1746137454030,-1932.82,0.0003589,11]
[359575904,1746137454039,-1153.29,0.0003589,11]
[359575905,1746137454052,-450.0,0.0003589,11]
[359575906,1746137454063,-450.0,0.0003589,11]
[359575907,1746137454072,-450.0,0.0003589,11]
[359575908,1746137454082,-578.29,0.0003589,11]
[359575909,1746137454091,-450.0,0.0003589,11]
[359575910,1746137454102,-450.0,0.0003589,11]
[359575911,1746137454112,-450.0,0.0003589,11]
[359575912,1746137454123,-450.0,0.0003589,11]
[359575913,1746137454133,-715.1,0.0003589,11]
[359575914,1746137454143,-450.0,0.0003589,11]
[359575915,1746137454151,-450.0,0.0003589,11]
[359575916,1746137454160,-450.0,0.0003589,11]
[359575917,1746137454170,-411.63453021,0.0003589,11]
[359575918,1746137454178,-450.0,0.0003589,11]
[359575919,1746137454187,-274.81802997,0.0003589,11]
[359575920,1746137454196,-450.0,0.0003589,11]
[359575921,1746137454205,-450.0,0.0003589,11]
[359575922,1746137454214,-451.73,0.0003589,11]
[359575923,1746137454223,-450.0,0.0003589,11]
[359575924,1746137454232,-229.53607798,0.0003589,11]
[359575925,1746137454241,-493.94,0.0003589,11]
[359575926,1746137454251,-450.0,0.0003589,11]
[359575927,1746137454261,-650.18,0.0003589,11]
[359575928,1746137454271,-450.0,0.0003589,11]
[359575929,1746137454280,-165.49,0.0003589,11]
[359575930,1746137454290,-450.0,0.0003589,11]
[359575931,1746137454300,-450.0,0.0003589,11]
[359575932,1746137454309,-613.48,0.0003589,11]
[359575933,1746137454320,-450.0,0.0003589,11]
[359575934,1746137454331,-450.0,0.0003589,11]
[359575935,1746137454340,-484.13,0.0003589,11]
[359575936,1746137454350,-450.0,0.0003589,11]
[359575937,1746137454361,-450.0,0.0003589,11]
[359575938,1746137454370,-450.0,0.0003589,11]
[359575939,1746137454379,-450.0,0.0003589,11]
[359575940,1746137454390,-450.0,0.0003589,11]
[359575941,1746137454399,-450.0,0.0003589,11]
[359575942,1746137454409,-613.96,0.0003589,11]
[359575943,1746137454419,-450.0,0.0003589,11]
[359575944,1746137454428,-450.0,0.0003589,11]
[359575945,1746137454437,-1485.28,0.0003589,11]
[359575946,1746137454446,-450.0,0.0003589,11]
[359575947,1746137454456,-766.2,0.0003589,11]
[359575948,1746137454465,-450.0,0.0003589,11]
[359575949,1746137454474,-637.94,0.0003589,11]
[359575950,1746137454486,-450.0,0.0003589,11]
[359575951,1746137454497,-450.0,0.0003589,11]
[359575952,1746137454507,-450.0,0.0003589,11]
[359575953,1746137454516,-450.0,0.0003589,11]
[359575954,1746137454525,-450.0,0.0003589,11]
[359575955,1746137454534,-575.81,0.0003589,11]
[359575956,1746137454545,-450.0,0.0003589,11]
[359575957,1746137454554,-1051.09,0.0003589,11]
[359575958,1746137454563,-450.0,0.0003589,11]
[359575959,1746137454572,-450.0,0.0003589,11]
[359575960,1746137454581,-450.0,0.0003589,11]
[359575961,1746137454591,-450.0,0.0003589,11]
[359575962,1746137454600,-450.0,0.0003589,11]
[359575963,1746137454609,-450.0,0.0003589,11]
[359575964,1746137454618,-1057.75,0.0003589,11]
[359575965,1746137454627,-450.0,0.0003589,11]
[359575966,1746137454636,-450.0,0.0003589,11]
[359575967,1746137454646,-450.0,0.0003589,11]
[359575968,1746137454655,-934.72,0.0003589,11]
[359575969,1746137454664,-450.0,0.0003589,11]
[359575970,1746137454673,-450.0,0.0003589,11]
[359575971,1746137454683,-450.0,0.0003589,11]
[359575972,1746137454692,-450.0,0.0003589,11]
[359575973,1746137454702,-540.83,0.0003589,11]
[359575974,1746137454711,-450.0,0.0003589,11]
[359575975,1746137454720,-450.0,0.0003589,11]
[359575976,1746137454729,-621.12,0.0003589,11]
[359575977,1746137454739,-162.3012486,0.0003589,11]
[359575978,1746137454748,-450.0,0.0003589,11]
[359575979,1746137454757,-450.0,0.0003589,11]
[359575980,1746137454766,-1060.9,0.0003589,11]
[359575981,1746137454776,-496.63,0.0003589,11]
[359575982,1746137454785,-511.56,0.0003589,11]
[359575983,1746137454795,-450.0,0.0003589,11]
[359575984,1746137454804,-450.0,0.0003589,11]
[359575985,1746137454813,-809.04,0.0003589,11]
[359575986,1746137454823,-450.0,0.0003589,11]
[359575987,1746137454832,-450.0,0.0003589,11]
[359575988,1746137454841,-1233.93,0.0003589,11]
[359575989,1746137454851,-450.0,0.0003589,11]
[359575990,1746137454860,-450.0,0.0003589,11]
[359575991,1746137454869,-450.0,0.0003589,11]
[359575992,1746137454878,-450.0,0.0003589,11]
[359575993,1746137454888,-450.0,0.0003589,11]
[359575994,1746137454897,-502.92,0.0003589,11]
[359575995,1746137454906,-450.0,0.0003589,11]
[359575996,1746137454915,-485.97,0.0003589,11]
[359575997,1746137454926,-708.39,0.0003589,11]
[359575998,1746137454937,-450.0,0.0003589,11]
[359575999,1746137454947,-450.0,0.0003589,11]
[359576000,1746137454957,-450.0,0.0003589,11]
[359576001,1746137454967,-450.0,0.0003589,11]
[359576002,1746137454977,-450.0,0.0003589,11]
[359576003,1746137454986,-888.78,0.0003589,11]
[359576004,1746137454996,-756.54,0.0003589,11]
[359576005,1746137455006,-1491.46,0.0003589,11]
[359576006,1746137455016,-450.0,0.0003589,11]
[359576007,1746137455025,-2171.12,0.0003589,11]
[359576008,1746137455035,-450.0,0.0003589,11]
[359576009,1746137455044,-450.0,0.0003589,2]
[359576010,1746137455053,-349.13586108,0.0003589,11]
[359576011,1746137455063,-1306.96,0.0003589,11]
[359576012,1746137455072,-603.85,0.0003589,11]
[359576013,1746137455081,-674.77,0.0003589,11]
[359576014,1746137455091,-860.69,0.0003589,11]
[359576015,1746137455100,-450.0,0.0003589,11]
[359576016,1746137455109,-450.0,0.0003589,11]
[359576017,1746137455118,-450.0,0.0003589,11]
[359576018,1746137455127,-1075.77,0.0003589,11]
[359576019,1746137455137,-450.0,0.0003589,11]
[359576020,1746137455146,-450.0,0.0003589,2]
[359576021,1746137455155,-450.0,0.0003589,11]
[359576022,1746137455165,-657.82,0.0003589,11]
[359576023,1746137455174,-1134.06,0.0003589,11]
[359576024,1746137455183,-450.0,0.0003589,11]
[359576025,1746137455192,-532.8,0.0003589,11]
[359576026,1746137455201,-450.0,0.0003589,11]
[359576027,1746137455210,-982.42,0.0003589,11]
[359576028,1746137455219,-2054.77,0.0003589,11]
[359576029,1746137455228,-174.50466973,0.0003589,11]
[359576030,1746137455238,-450.0,0.0003589,11]
[359576031,1746137455247,-450.0,0.0003589,2]
[359576032,1746137455257,-469.82,0.0003589,11]
[359576033,1746137455267,-450.0,0.0003589,11]
[359576034,1746137455276,-450.0,0.0003589,11]
[359576035,1746137455285,-803.53,0.0003589,11]
[359576036,1746137455295,-450.0,0.0003589,11]
[359576037,1746137455304,-450.0,0.0003589,11]
[359576038,1746137455314,-580.73,0.0003589,11]
[359576039,1746137455328,-450.0,0.0003589,11]
[359576040,1746137455337,-1587.58,0.0003589,11]
[359576041,1746137455346,-450.0,0.0003589,11]
[359576042,1746137455358,-450.0,0.0003589,11]
[359576043,1746137455369,-450.0,0.0003589,11]
[359576044,1746137455379,-483.06,0.0003589,11]
[359576045,1746137455391,-1083.69,0.0003589,11]
[359576046,1746137455401,-450.0,0.0003589,11]
[359576047,1746137455411,-1809.19,0.0003589,11]
[359576048,1746137455420,-450.0,0.0003589,11]
[359576049,1746137455430,-472.73,0.0003589,11]
[359576050,1746137455441,-181.7947616,0.0003589,11]
[359576051,1746137455450,-450.0,0.0003589,11]
[359576052,1746137455460,-450.0,0.0003589,11]
[359576053,1746137455471,-450.0,0.0003589,11]
[359576054,1746137455481,-733.99,0.0003589,11]
[359576055,1746137455490,-450.0,0.0003589,11]
[359576056,1746137455500,-450.0,0.0003589,11]
[359576057,1746137455511,-450.0,0.0003589,11]
[359576058,1746137455521,-506.22,0.0003589,11]
[359576059,1746137455531,-1019.15,0.0003589,11]
[359576060,1746137455540,-450.0,0.0003589,11]
[359576061,1746137455550,-527.77,0.0003589,11]
[359576062,1746137455560,-494.31,0.0003589,11]
[359576063,1746137455569,-554.68,0.0003589,11]
[359576064,1746137455579,-450.0,0.0003589,11]
[359576065,1746137455588,-450.0,0.0003589,11]
[359576066,1746137455598,-450.0,0.0003589,11]
[359576067,1746137455607,-565.32,0.0003589,11]
[359576068,1746137455617,-450.0,0.0003589,11]
[359576069,1746137455626,-450.0,0.0003589,11]
[359576070,1746137455636,-1257.44,0.0003589,11]
[359576071,1746137455646,-254.11,0.0003589,11]
[359576072,1746137455655,-616.47,0.0003589,11]
[359576073,1746137455665,-450.0,0.0003589,11]
[359576074,1746137455675,-1228.66,0.0003589,11]
[359576075,1746137455684,-450.0,0.0003589,11]
[359576076,1746137455694,-450.0,0.0003589,11]
[359576077,1746137455704,-450.0,0.0003589,11]
[359576078,1746137455715,-450.0,0.0003589,11]
[359576079,1746137455724,-450.0,0.0003589,11]
[359576080,1746137455734,-450.0,0.0003589,11]
[359576081,1746137455744,-450.0,0.0003589,11]
[359576082,1746137455755,-450.0,0.0003589,11]
[359576083,1746137455764,-450.0,0.0003589,11]
[359576084,1746137455774,-495.72,0.0003589,11]
[359576085,1746137455784,-450.0,0.0003589,11]
[359576086,1746137455795,-450.0,0.0003589,11]
[359576087,1746137455804,-450.0,0.0003589,11]
[359576088,1746137455814,-450.0,0.0003589,11]
[359576089,1746137455824,-450.0,0.0003589,11]
[359576090,1746137455834,-450.0,0.0003589,11]
[359576091,1746137455844,-450.0,0.0003589,11]
[359576092,1746137455854,-686.46,0.0003589,11]
[359576093,1746137455864,-645.1,0.0003589,11]
[359576094,1746137455875,-287.80354676,0.0003589,11]
[359576095,1746137455885,-450.0,0.0003589,11]
[359576096,1746137455894,-450.0,0.0003589,11]
[359576097,1746137455904,-450.0,0.0003589,11]
[359576098,1746137455915,-450.0,0.0003589,11]
[359576099,1746137455925,-450.0,0.0003589,11]
[359576100,1746137455935,-469.3,0.0003589,11]
[359576101,1746137455945,-226.00295427,0.0003589,11]
[359576102,1746137455955,-450.0,0.0003589,11]
[359576103,1746137455964,-450.0,0.0003589,11]
[359576104,1746137455974,-450.0,0.0003589,11]
[359576105,1746137455984,-1016.8,0.0003589,11]
[359576106,1746137455995,-450.0,0.0003589,11]
[359576107,1746137456006,-1098.77,0.0003589,11]
[359576108,1746137456015,-450.0,0.0003589,11]
[359576109,1746137456026,-1175.04,0.0003589,11]
[359576110,1746137456036,-450.0,0.0003589,11]
[359576111,1746137456045,-450.0,0.0003589,11]
[359576112,1746137456055,-839.92,0.0003589,11]
[359576113,1746137456065,-450.0,0.0003589,11]
[359576114,1746137456074,-633.53,0.0003589,11]
[359576115,1746137456084,-450.0,0.0003589,11]
[359576116,1746137456094,-450.0,0.0003589,11]
[359576117,1746137456103,-450.0,0.0003589,11]
[359576118,1746137456113,-450.0,0.0003589,11]
[359576119,1746137456122,-806.89,0.0003589,11]
[359576120,1746137456132,-887.91,0.0003589,11]
[359576121,1746137456142,-151.0,0.0003589,7]
[359576122,1746137456152,-456.08,0.0003589,11]
[359576123,1746137456162,-781.21,0.0003589,11]
[359576124,1746137456172,-509.39,0.0003589,11]
[359576125,1746137456181,-450.0,0.0003589,11]
[359576126,1746137456191,-450.0,0.0003589,11]
[359576127,1746137456200,-902.5,0.0003589,11]
[359576128,1746137456210,-450.0,0.0003589,11]
[359576129,1746137456220,-710.22,0.0003589,11]
[359576130,1746137456230,-450.0,0.0003589,7]
[359576131,1746137456240,-2075.49,0.0003589,11]
[359576132,1746137456250,-450.0,0.0003589,11]
[359576133,1746137456260,-450.0,0.0003589,11]
[359576134,1746137456270,-450.0,0.0003589,11]
[359576135,1746137456280,-450.0,0.0003589,11]
[359576136,1746137456290,-151.0,0.0003589,7]
[359576137,1746137456300,-384.33727615,0.0003589,11]
[359576138,1746137456310,-1150.22,0.0003589,11]
[359576139,1746137456322,-756.88,0.0003589,11]
[359576140,1746137456332,-458.85,0.0003589,11]
[359576141,1746137456342,-450.0,0.0003589,7]
[359576142,1746137456352,-450.0,0.0003589,11]
[359576143,1746137456362,-450.0,0.0003589,11]
[359576144,1746137456372,-450.0,0.0003589,11]
[359576145,1746137456382,-875.6,0.0003589,11]
[359576146,1746137456391,-519.64,0.0003589,11]
[359576147,1746137456402,-155.032481,0.0003589,7]
[359576148,1746137456412,-450.0,0.0003589,11]
[359576149,1746137456422,-3225.23,0.0003589,11]
[359576150,1746137456432,-888.87,0.0003589,11]
[359576151,1746137456441,-450.0,0.0003589,11]
[359576152,1746137456451,-450.0,0.0003589,11]
[359576153,1746137456460,-825.62,0.0003589,11]
[359576154,1746137456469,-450.0,0.0003589,11]
[359576155,1746137456479,-450.0,0.0003589,11]
[359576156,1746137456489,-450.0,0.0003589,11]
[359576157,1746137456498,-1162.27,0.0003589,11]
[359576158,1746137456508,-450.0,0.0003589,11]
[359576159,1746137456518,-809.51,0.0003589,11]
[359576160,1746137456527,-549.22,0.0003589,11]
[359576161,1746137456537,-450.0,0.0003589,11]
[359576162,1746137456547,-501.05,0.0003589,11]
[359576163,1746137456557,-602.74,0.0003589,11]
[359576164,1746137456567,-1000.0,0.0003589,60]
[359576165,1746137456576,-950.96,0.0003589,11]
[359576166,1746137456586,-158.27222685,0.0003589,11]
[359576167,1746137456596,-450.0,0.0003589,11]
[359576168,1746137456605,-613.48,0.0003589,11]
[359576169,1746137456616,-658.3,0.0003589,11]
[359576170,1746137456625,-1085.3,0.0003589,11]
[359576171,1746137456635,-450.0,0.0003589,11]
[359576172,1746137456644,-596.08,0.0003589,11]
[359576173,1746137456654,-738.57,0.0003589,11]
[359576174,1746137456664,-1012.65,0.0003589,11]
[359576175,1746137456674,-692.14,0.0003589,11]
[359576176,1746137456683,-983.38,0.0003589,11]
[359576177,1746137456693,-450.0,0.0003589,11]
[359576178,1746137456703,-542.43032161,0.0003589,11]
[359576179,1746137456712,-675.8,0.0003589,11]
[359576180,1746137456722,-534.66476473,0.0003589,11]
[359576181,1746137456731,-450.0,0.0003589,11]
[359576182,1746137456741,-450.0,0.0003589,11]
[359576183,1746137456751,-1087.08,0.0003589,11]
[359576184,1746137456761,-450.0,0.0003589,11]
[359576185,1746137456770,-526.03087513,0.0003589,11]
[359576186,1746137456780,-450.0,0.0003589,11]
[359576187,1746137456790,-450.0,0.0003589,11]
[359576188,1746137456800,-629.93,0.0003589,11]
[359576189,1746137456809,-450.0,0.0003589,11]
[359576190,1746137456819,-450.0,0.0003589,11]
[359576191,1746137456829,-450.0,0.0003589,11]
[359576192,1746137456839,-533.53,0.0003589,11]
[359576193,1746137456850,-450.0,0.0003589,11]
[359576194,1746137456859,-564.19,0.0003589,11]
[359576195,1746137456869,-450.0,0.0003589,11]
[359576196,1746137456879,-450.0,0.0003589,11]
[359576197,1746137456889,-450.0,0.0003589,11]
[359576198,1746137456899,-450.0,0.0003589,11]
[359576199,1746137456909,-899.52,0.0003589,11]
[359576200,1746137456920,-450.0,0.0003589,11]
[359576201,1746137456930,-450.0,0.0003589,11]
[359576202,1746137456939,-2864.99,0.0003589,11]
[359576203,1746137456949,-1328.02,0.0003589,11]
[359576204,1746137456959,-976.36,0.0003589,11]
[359576205,1746137456968,-970.78,0.0003589,11]
[359576206,1746137456977,-790.6,0.0003589,11]
[359576207,1746137456987,-450.0,0.0003589,11]
[359576208,1746137456997,-450.0,0.0003589,11]
[359576209,1746137457008,-450.0,0.0003589,11]
[359576210,1746137457018,-450.0,0.0003589,11]
[359576211,1746137457028,-450.0,0.0003589,11]
[359576212,1746137457038,-1019.41,0.0003589,11]
[359576213,1746137457048,-186.333407,0.0003589,7]
[359576214,1746137457059,-171.07636687,0.0003589,11]
[359576215,1746137457069,-450.0,0.0003589,11]
[359576216,1746137457078,-598.44,0.0003589,11]
[359576217,1746137457088,-450.0,0.0003589,11]
[359576218,1746137457098,-467.26,0.0003589,11]
[359576219,1746137457108,-450.0,0.0003589,11]
[359576220,1746137457118,-450.0,0.0003589,11]
[359576221,1746137457129,-630.97,0.0003589,11]
[359576222,1746137457141,-240.42110768,0.0003589,11]
[359576223,1746137457152,-473.55,0.0003589,11]
[359576224,1746137457162,-450.0,0.0003589,11]
[359576225,1746137457172,-450.0,0.0003589,11]
[359576226,1746137457182,-450.0,0.0003589,11]
[359576227,1746137457193,-450.0,0.0003589,11]
[359576228,1746137457204,-848.81,0.0003589,11]
[359576229,1746137457214,-450.0,0.0003589,11]
[359576230,1746137457224,-596.731986,0.0003589,7]
[359576231,1746137457235,-450.0,0.0003589,10]
[359576232,1746137457248,-450.0,0.0003589,11]
[359576233,1746137457258,-472.77,0.0003589,11]
[359576234,1746137457268,-450.0,0.0003589,11]
[359576235,1746137457279,-450.0,0.0003589,11]
[359576236,1746137457289,-450.0,0.0003589,11]
[359576237,1746137457301,-1202.2,0.0003589,11]
[359576238,1746137457313,-450.0,0.0003589,11]
[359576239,1746137457331,-596.731986,0.0003589,7]
[359576240,1746137457342,-1017.89,0.0003589,11]
[359576241,1746137457352,-450.0,0.0003589,11]
[359576242,1746137457365,-450.0,0.0003589,11]
[359576243,1746137457375,-450.0,0.0003589,11]
[359576244,1746137457386,-293.90677214,0.0003589,11]
[359576245,1746137457396,-1411.61,0.0003589,11]
[359576246,1746137457407,-450.0,0.0003589,11]
[359576247,1746137457418,-644.23,0.0003589,11]
[359576248,1746137457429,-450.0,0.0003589,11]
[359576249,1746137457439,-990.87,0.0003589,11]
[359576250,1746137457450,-450.0,0.0003589,11]
[359576251,1746137457462,-561.41,0.0003589,11]
[359576252,1746137457472,-450.0,0.0003589,11]
[359576253,1746137457482,-450.0,0.0003589,11]
[359576254,1746137457493,-450.0,0.0003589,11]
[359576255,1746137457503,-880.87,0.0003589,120]
[359576256,1746137457513,-832.52,0.0003589,11]
[359576257,1746137457523,-450.0,0.0003589,11]
[359576258,1746137457533,-450.0,0.0003589,11]
[359576259,1746137457543,-450.0,0.0003589,11]
[359576260,1746137457554,-450.0,0.0003589,11]
[359576261,1746137457565,-450.0,0.0003589,11]
[359576262,1746137457575,-2166.8,0.0003589,11]
[359576263,1746137457585,-1460.54,0.0003589,11]
[359576264,1746137457595,-450.0,0.0003589,11]
[359576265,1746137457604,-450.0,0.0003589,11]
[359576266,1746137457615,-1326.45,0.0003589,11]
[359576267,1746137457626,-450.0,0.0003589,11]
[359576268,1746137457636,-450.0,0.0003589,11]
[359576269,1746137457645,-450.0,0.0003589,11]
[359576270,1746137457655,-832.15,0.0003589,11]
[359576271,1746137457665,-1111.23,0.0003589,11]
[359576272,1746137457675,-450.0,0.0003589,11]
[359576273,1746137457686,-450.0,0.0003589,11]
[359576274,1746137457696,-728.279374,0.0003589,7]
[359576275,1746137457706,-450.0,0.0003589,11]
[359576276,1746137457716,-1191.23,0.0003589,11]
[359576277,1746137457731,-450.0,0.0003589,11]
[359576278,1746137457742,-151.0,0.0003589,7]
[359576279,1746137457753,-450.0,0.0003589,11]
[359576280,1746137457763,-1132.85,0.0003589,11]
[359576281,1746137457773,-728.279374,0.0003589,7]
[359576282,1746137457783,-1919.28,0.0003589,11]
[359576283,1746137457793,-1011.23,0.0003589,11]
[359576284,1746137457803,-151.0,0.0003589,7]
[359576285,1746137457813,-450.0,0.0003589,11]
[359576286,1746137457823,-586.79,0.0003589,11]
[359576287,1746137457833,-1439.64,0.0003589,11]
[359576288,1746137457844,-715.63,0.0003589,11]
[359576289,1746137457854,-450.0,0.0003589,11]
[359576290,1746137457865,-755.14,0.0003589,11]
[359576291,1746137457875,-450.0,0.0003589,7]
[359576292,1746137458097,-450.0,0.0003589,11]
[359576293,1746137458142,-1410.47,0.0003589,11]
[359576294,1746137458151,-151.0,0.0003589,7]
[359576295,1746137458161,-450.0,0.0003589,11]
[359576296,1746137458171,-173.9974462,0.0003589,11]
[359576297,1746137458181,-504.6,0.0003589,11]
[359576298,1746137458191,-530.56,0.0003589,11]
[359576299,1746137458200,-594.82,0.0003589,11]
[359576300,1746137458210,-450.0,0.0003589,11]
[359576301,1746137458220,-450.0,0.0003589,11]
[359576302,1746137458230,-253.53492,0.0003589,7]
[359576303,1746137458240,-4628.51,0.0003589,11]
[359576304,1746137458251,-237.42494361,0.0003589,11]
[359576305,1746137458261,-450.0,0.0003589,11]
[359576306,1746137458271,-450.0,0.0003589,11]
[359576307,1746137458284,-450.0,0.0003589,11]
[359576308,1746137458293,-450.0,0.0003589,11]
[359576309,1746137458303,-450.0,0.0003589,11]
[359576310,1746137458313,-253.53492,0.0003589,7]
[359576311,1746137458327,-450.0,0.0003589,11]
[359576312,1746137458336,-9021.74,0.0003589,11]
[359576313,1746137458346,-2499.3,0.0003589,11]
[359576314,1746137458356,-450.0,0.0003589,11]
[359576315,1746137458366,-450.0,0.0003589,11]
[359576316,1746137458376,-450.0,0.0003589,11]
[359576317,1746137458386,-450.0,0.0003589,11]
[359576318,1746137458396,-450.0,0.0003589,11]
[359576319,1746137458405,-450.0,0.0003589,11]
[359576320,1746137458415,-450.0,0.0003589,11]
[359576321,1746137458424,-586.64,0.0003589,11]